[Event "Titled Tuesday Blitz March 28 Early 2023"]
[White "Bochnicka, Vladimir"]
[Black "koncheto"]
[WhiteFideId "14943450"]
[WhiteElo "2094"]
[BlackElo "2504"]
[Result "1-0"]
[Round "04"]
[TimeControl "180+2"]
[Date "2023.03.28"]
[WhiteClock "0:00:27"]
[BlackClock "0:00:03"]

1. e4 {[%clk 0:03:00]}  d5 {[%clk 0:02:58]} 2. exd5 {[%clk 0:03:01]}  Qxd5 {[%clk 0:02:58]} 3. Nc3 {[%clk 0:03:01]}  Qa5 {[%clk 0:02:59]} 4. d4 {[%clk 0:03:01]}  c6 {[%clk 0:02:59]} 5. Nf3 {[%clk 0:03:00]}  Nf6 {[%clk 0:03:00]} 6. Bc4 {[%clk 0:02:57]}  Bf5 {[%clk 0:02:59]} 7. O-O {[%clk 0:02:56]}  e6 {[%clk 0:03:00]} 8. Re1 {[%clk 0:02:55]}  Bd6 {[%clk 0:03:00]} 9. h3 {[%clk 0:02:52]}  O-O {[%clk 0:03:00]} 10. Ne5 {[%clk 0:02:47]}  Nbd7 {[%clk 0:02:59]} 11. Bf4 {[%clk 0:02:36]}  Qc7 {[%clk 0:02:48]} 12. Qf3 {[%clk 0:02:30]}  a6 {[%clk 0:02:42]} 13. g4 {[%clk 0:02:23]}  Bxc2 {[%clk 0:02:36]} 14. Rac1 {[%clk 0:02:21]}  Bg6 {[%clk 0:02:34]} 15. h4 {[%clk 0:02:08]}  Nd5 {[%clk 0:01:34]} 16. Bxd5 {[%clk 0:01:34]}  exd5 {[%clk 0:00:53]} 17. Nxd5 {[%clk 0:01:33]}  Qd8 {[%clk 0:00:49]} 18. Nxd7 {[%clk 0:01:26]}  cxd5 {[%clk 0:00:35]} 19. Bxd6 {[%clk 0:01:16]}  Qxd7 {[%clk 0:00:30]} 20. Bxf8 {[%clk 0:01:16]}  Rxf8 {[%clk 0:00:26]} 21. h5 {[%clk 0:01:11]}  Be4 {[%clk 0:00:25]} 22. Qf4 {[%clk 0:01:12]}  Qa4 {[%clk 0:00:16]} 23. Qe5 {[%clk 0:00:40]}  Re8 {[%clk 0:00:12]} 24. b3 {[%clk 0:00:35]}  Qd7 {[%clk 0:00:11]} 25. Qg5 {[%clk 0:00:32]}  h6 {[%clk 0:00:08]} 26. Qf4 {[%clk 0:00:32]}  Re6 {[%clk 0:00:04]} 27. Rc7 {[%clk 0:00:31]}  Qe8 {[%clk 0:00:02]} 28. Rec1 {[%clk 0:00:31]}  Rf6 {[%clk 0:00:01]} 29. Qxf6 {[%clk 0:00:27]}  gxf6 {[%clk 0:00:01]} 30. Rc8 {[%clk 0:00:27]}  Kf8 {[%clk 0:00:02]} 31. Rxe8+ {[%clk 0:00:27]}  Kxe8 {[%clk 0:00:03]} 1-0


[Site "https://www.chess.com"]

[Event "Titled Tuesday Blitz March 28 Early 2023"]
[White "Sawyer, Bradley"]
[Black "Rom, Jasper"]
[WhiteFideId "2023784"]
[BlackFideId "2023733"]
[WhiteElo "2340"]
[BlackElo "2233"]
[Result "0-1"]
[Round "04"]
[TimeControl "180+2"]
[Date "2023.03.28"]
[WhiteClock "0:00:01"]
[BlackClock "0:00:06"]

1. c4 {[%clk 0:03:00]}  e6 {[%clk 0:02:55]} 2. g3 {[%clk 0:03:00]}  d5 {[%clk 0:02:55]} 3. Bg2 {[%clk 0:03:01]}  Nf6 {[%clk 0:02:55]} 4. Nf3 {[%clk 0:03:01]}  Be7 {[%clk 0:02:53]} 5. O-O {[%clk 0:03:02]}  O-O {[%clk 0:02:53]} 6. b3 {[%clk 0:03:01]}  b6 {[%clk 0:02:48]} 7. Bb2 {[%clk 0:03:02]}  Bb7 {[%clk 0:02:48]} 8. e3 {[%clk 0:03:02]}  Na6 {[%clk 0:02:47]} 9. Qe2 {[%clk 0:02:58]}  c5 {[%clk 0:02:43]} 10. Rd1 {[%clk 0:02:56]}  Rc8 {[%clk 0:02:43]} 11. Nc3 {[%clk 0:02:54]}  d4 {[%clk 0:02:37]} 12. Nb5 {[%clk 0:02:26]}  d3 {[%clk 0:02:33]} 13. Qf1 {[%clk 0:02:26]}  Nb4 {[%clk 0:02:22]} 14. Ne5 {[%clk 0:02:13]}  Bxg2 {[%clk 0:02:14]} 15. Qxg2 {[%clk 0:02:06]}  a6 {[%clk 0:02:09]} 16. Na7 {[%clk 0:01:46]}  Rc7 {[%clk 0:02:09]} 17. Nac6 {[%clk 0:01:46]}  Nxc6 {[%clk 0:02:06]} 18. Nxc6 {[%clk 0:01:46]}  Qd7 {[%clk 0:02:02]} 19. Ne5 {[%clk 0:01:45]}  Qd6 {[%clk 0:01:56]} 20. f4 {[%clk 0:01:35]}  Rd8 {[%clk 0:01:51]} 21. Rac1 {[%clk 0:01:35]}  Nd7 {[%clk 0:01:32]} 22. Nf3 {[%clk 0:01:31]}  Bf6 {[%clk 0:01:26]} 23. Bc3 {[%clk 0:01:28]}  b5 {[%clk 0:01:23]} 24. e4 {[%clk 0:01:22]}  Bxc3 {[%clk 0:01:18]} 25. Rxc3 {[%clk 0:01:23]}  e5 {[%clk 0:01:00]} 26. f5 {[%clk 0:01:17]}  b4 {[%clk 0:00:56]} 27. Rcc1 {[%clk 0:01:13]}  a5 {[%clk 0:00:47]} 28. g4 {[%clk 0:01:09]}  a4 {[%clk 0:00:41]} 29. Re1 {[%clk 0:01:07]}  Ra7 {[%clk 0:00:40]} 30. Re3 {[%clk 0:01:07]}  Nb8 {[%clk 0:00:34]} 31. Ne1 {[%clk 0:01:05]}  Nc6 {[%clk 0:00:33]} 32. Rxd3 {[%clk 0:00:57]}  Nd4 {[%clk 0:00:33]} 33. Re3 {[%clk 0:00:55]}  axb3 {[%clk 0:00:32]} 34. axb3 {[%clk 0:00:55]}  Ra3 {[%clk 0:00:32]} 35. Rb1 {[%clk 0:00:50]}  Rda8 {[%clk 0:00:31]} 36. Nf3 {[%clk 0:00:38]}  Ra1 {[%clk 0:00:28]} 37. Ree1 {[%clk 0:00:19]}  R1a2 {[%clk 0:00:22]} 38. Rbd1 {[%clk 0:00:17]}  Nxb3 {[%clk 0:00:20]} 39. g5 {[%clk 0:00:14]}  Rd8 {[%clk 0:00:19]} 40. f6 {[%clk 0:00:12]}  g6 {[%clk 0:00:20]} 41. Qg3 {[%clk 0:00:10]}  Re8 {[%clk 0:00:13]} 42. Qh4 {[%clk 0:00:09]}  Nd4 {[%clk 0:00:12]} 43. Nxd4 {[%clk 0:00:08]}  Qxd4+ {[%clk 0:00:12]} 44. Kf1 {[%clk 0:00:05]}  h5 {[%clk 0:00:11]} 45. gxh6 {[%clk 0:00:05]}  Qxc4+ {[%clk 0:00:09]} 46. Kg1 {[%clk 0:00:03]}  Qd4+ {[%clk 0:00:08]} 47. Qf2 {[%clk 0:00:03]}  Kh7 {[%clk 0:00:07]} 48. Qxd4 {[%clk 0:00:01]}  cxd4 {[%clk 0:00:06]} 0-1


[Site "https://www.chess.com"]

[Event "Titled Tuesday Blitz March 28 Early 2023"]
[White "Jaskolka, Tomasz"]
[Black "Polanco Nunez, Yoel Estarling"]
[WhiteFideId "1170791"]
[BlackFideId "6401783"]
[WhiteElo "2155"]
[BlackElo "2132"]
[Result "1-0"]
[Round "04"]
[TimeControl "180+2"]
[Date "2023.03.28"]
[WhiteClock "0:00:13"]
[BlackClock "0:00:10"]

1. d4 {[%clk 0:03:00]}  d5 {[%clk 0:02:59]} 2. Bf4 {[%clk 0:03:00]}  c5 {[%clk 0:02:57]} 3. e3 {[%clk 0:03:00]}  Nc6 {[%clk 0:02:55]} 4. c3 {[%clk 0:02:59]}  Nf6 {[%clk 0:02:50]} 5. Nd2 {[%clk 0:02:59]}  Bf5 {[%clk 0:02:47]} 6. Ngf3 {[%clk 0:02:57]}  e6 {[%clk 0:02:39]} 7. Qa4 {[%clk 0:02:55]}  Nd7 {[%clk 0:02:29]} 8. Bb5 {[%clk 0:02:48]}  Qb6 {[%clk 0:02:24]} 9. Ne5 {[%clk 0:02:44]}  Ndxe5 {[%clk 0:02:24]} 10. Bxe5 {[%clk 0:02:43]}  f6 {[%clk 0:02:24]} 11. dxc5 {[%clk 0:02:39]}  Bxc5 {[%clk 0:02:22]} 12. Bd4 {[%clk 0:02:40]}  Bxd4 {[%clk 0:02:23]} 13. exd4 {[%clk 0:02:40]}  a6 {[%clk 0:02:17]} 14. Bxc6+ {[%clk 0:02:39]}  bxc6 {[%clk 0:02:16]} 15. b4 {[%clk 0:02:36]}  Bd3 {[%clk 0:02:11]} 16. Nb3 {[%clk 0:02:32]}  O-O {[%clk 0:02:08]} 17. Nc5 {[%clk 0:02:27]}  Bc4 {[%clk 0:02:06]} 18. Nd7 {[%clk 0:02:20]}  Qc7 {[%clk 0:02:02]} 19. Nxf8 {[%clk 0:02:20]}  Rxf8 {[%clk 0:01:59]} 20. Qa5 {[%clk 0:02:14]}  Qf4 {[%clk 0:01:58]} 21. Qa3 {[%clk 0:01:46]}  Qe4+ {[%clk 0:01:56]} 22. Kd2 {[%clk 0:01:46]}  Qe2+ {[%clk 0:01:56]} 23. Kc1 {[%clk 0:01:47]}  Qxf2 {[%clk 0:01:44]} 24. Qb2 {[%clk 0:01:46]}  Qf5 {[%clk 0:01:38]} 25. Qd2 {[%clk 0:01:38]}  e5 {[%clk 0:01:38]} 26. Kb2 {[%clk 0:01:33]}  exd4 {[%clk 0:01:37]} 27. Qxd4 {[%clk 0:01:29]}  a5 {[%clk 0:01:37]} 28. a3 {[%clk 0:01:29]}  a4 {[%clk 0:01:26]} 29. Rae1 {[%clk 0:01:28]}  Bb3 {[%clk 0:01:15]} 30. Re2 {[%clk 0:01:23]}  h6 {[%clk 0:01:08]} 31. Rhe1 {[%clk 0:01:20]}  Kh7 {[%clk 0:01:06]} 32. g4 {[%clk 0:01:10]}  Qg6 {[%clk 0:01:01]} 33. h4 {[%clk 0:01:10]}  Bc4 {[%clk 0:00:50]} 34. Re7 {[%clk 0:01:03]}  Bb3 {[%clk 0:00:50]} 35. R1e2 {[%clk 0:01:00]}  Bc4 {[%clk 0:00:50]} 36. h5 {[%clk 0:00:49]}  Qg5 {[%clk 0:00:50]} 37. Rf2 {[%clk 0:00:49]}  f5 {[%clk 0:00:41]} 38. Re5 {[%clk 0:00:45]}  Qh4 {[%clk 0:00:34]} 39. gxf5 {[%clk 0:00:39]}  Qxh5 {[%clk 0:00:31]} 40. Rg2 {[%clk 0:00:36]}  Rf7 {[%clk 0:00:23]} 41. Qf4 {[%clk 0:00:13]}  Qd1 {[%clk 0:00:21]} 42. Qg3 {[%clk 0:00:09]}  Qb3+ {[%clk 0:00:20]} 43. Kc1 {[%clk 0:00:10]}  Qxa3+ {[%clk 0:00:20]} 44. Kd2 {[%clk 0:00:11]}  Qb2+ {[%clk 0:00:19]} 45. Ke1 {[%clk 0:00:11]}  d4 {[%clk 0:00:13]} 46. Qg6+ {[%clk 0:00:11]}  Kg8 {[%clk 0:00:11]} 47. Re8+ {[%clk 0:00:12]}  Rf8 {[%clk 0:00:10]} 48. Qxg7# {[%clk 0:00:13]} 1-0


[Site "https://www.chess.com"]

[Event "Titled Tuesday Blitz March 28 Early 2023"]
[White "Jiganchine, Roman"]
[Black "Sztokbant, Bernardo Vainzoff"]
[WhiteFideId "2603667"]
[BlackFideId "2115956"]
[WhiteElo "2336"]
[BlackElo "2222"]
[Result "0-1"]
[Round "04"]
[TimeControl "180+2"]
[Date "2023.03.28"]
[WhiteClock "0:00:14"]
[BlackClock "0:00:14"]

1. e4 {[%clk 0:02:59]}  c5 {[%clk 0:02:56]} 2. Nf3 {[%clk 0:02:55]}  d6 {[%clk 0:02:55]} 3. Bb5+ {[%clk 0:02:54]}  Bd7 {[%clk 0:02:56]} 4. Bxd7+ {[%clk 0:02:53]}  Qxd7 {[%clk 0:02:56]} 5. c4 {[%clk 0:02:52]}  Nc6 {[%clk 0:02:54]} 6. d4 {[%clk 0:02:50]}  cxd4 {[%clk 0:02:54]} 7. Nxd4 {[%clk 0:02:49]}  Nf6 {[%clk 0:02:54]} 8. Nc3 {[%clk 0:02:49]}  g6 {[%clk 0:02:54]} 9. f3 {[%clk 0:02:40]}  Bg7 {[%clk 0:02:54]} 10. Be3 {[%clk 0:02:39]}  Rc8 {[%clk 0:02:52]} 11. b3 {[%clk 0:02:35]}  O-O {[%clk 0:02:43]} 12. O-O {[%clk 0:02:33]}  a6 {[%clk 0:02:42]} 13. a4 {[%clk 0:02:02]}  Na5 {[%clk 0:02:19]} 14. Rb1 {[%clk 0:01:49]}  e6 {[%clk 0:02:02]} 15. Qd2 {[%clk 0:01:45]}  Qc7 {[%clk 0:01:56]} 16. Rfc1 {[%clk 0:01:38]}  Nd7 {[%clk 0:01:52]} 17. Qf2 {[%clk 0:01:09]}  Nc5 {[%clk 0:01:44]} 18. b4 {[%clk 0:01:00]}  Nd3 {[%clk 0:01:44]} 19. Qe2 {[%clk 0:00:49]}  Nxc1 {[%clk 0:01:44]} 20. Rxc1 {[%clk 0:00:49]}  Nxc4 {[%clk 0:01:44]} 21. Bf2 {[%clk 0:00:43]}  d5 {[%clk 0:01:18]} 22. exd5 {[%clk 0:00:37]}  Qf4 {[%clk 0:01:18]} 23. Rd1 {[%clk 0:00:28]}  Rfd8 {[%clk 0:01:01]} 24. g3 {[%clk 0:00:27]}  Qd6 {[%clk 0:00:29]} 25. Ne4 {[%clk 0:00:25]}  Qxd5 {[%clk 0:00:27]} 26. Kg2 {[%clk 0:00:23]}  e5 {[%clk 0:00:22]} 27. Nf5 {[%clk 0:00:20]}  Qxd1 {[%clk 0:00:18]} 28. Ne7+ {[%clk 0:00:19]}  Kf8 {[%clk 0:00:18]} 29. Nxg6+ {[%clk 0:00:17]}  hxg6 {[%clk 0:00:18]} 30. Qa2 {[%clk 0:00:16]}  Ne3+ {[%clk 0:00:12]} 31. Bxe3 {[%clk 0:00:15]}  Rc2+ {[%clk 0:00:13]} 32. Qxc2 {[%clk 0:00:14]}  Qxc2+ {[%clk 0:00:14]} 0-1


[Site "https://www.chess.com"]

[Event "Titled Tuesday Blitz March 28 Early 2023"]
[White "Lukas2010"]
[Black "Gronnestad, Anita"]
[BlackFideId "1502972"]
[WhiteElo "2485"]
[BlackElo "1939"]
[Result "1-0"]
[Round "04"]
[TimeControl "180+2"]
[Date "2023.03.28"]
[WhiteClock "0:00:21"]
[BlackClock "0:00:22"]

1. e4 {[%clk 0:03:00]}  c6 {[%clk 0:02:58]} 2. d4 {[%clk 0:03:00]}  d5 {[%clk 0:02:59]} 3. Nc3 {[%clk 0:03:01]}  dxe4 {[%clk 0:02:59]} 4. Nxe4 {[%clk 0:03:02]}  Nf6 {[%clk 0:02:59]} 5. Nxf6+ {[%clk 0:03:01]}  exf6 {[%clk 0:03:00]} 6. c3 {[%clk 0:03:01]}  Bd6 {[%clk 0:03:00]} 7. Bd3 {[%clk 0:03:01]}  O-O {[%clk 0:03:01]} 8. Qc2 {[%clk 0:03:02]}  Re8+ {[%clk 0:03:01]} 9. Ne2 {[%clk 0:03:03]}  h5 {[%clk 0:03:01]} 10. O-O {[%clk 0:03:02]}  Be6 {[%clk 0:03:01]} 11. Nf4 {[%clk 0:02:56]}  Bxf4 {[%clk 0:03:00]} 12. Bxf4 {[%clk 0:02:56]}  Nd7 {[%clk 0:03:00]} 13. Rfe1 {[%clk 0:02:52]}  Nf8 {[%clk 0:03:00]} 14. Rad1 {[%clk 0:02:49]}  Qb6 {[%clk 0:02:59]} 15. c4 {[%clk 0:02:38]}  a5 {[%clk 0:02:56]} 16. Bd6 {[%clk 0:02:22]}  Bg4 {[%clk 0:02:47]} 17. Rc1 {[%clk 0:02:08]}  Qxd4 {[%clk 0:02:41]} 18. c5 {[%clk 0:02:04]}  Ne6 {[%clk 0:02:32]} 19. h3 {[%clk 0:01:52]}  Ng5 {[%clk 0:02:05]} 20. hxg4 {[%clk 0:01:36]}  Qxg4 {[%clk 0:02:03]} 21. Bg3 {[%clk 0:01:30]}  h4 {[%clk 0:01:59]} 22. Bf5 {[%clk 0:01:30]}  Qd4 {[%clk 0:01:51]} 23. Red1 {[%clk 0:01:20]}  Qxd1+ {[%clk 0:01:01]} 24. Rxd1 {[%clk 0:01:16]}  hxg3 {[%clk 0:01:02]} 25. fxg3 {[%clk 0:01:06]}  Re5 {[%clk 0:01:02]} 26. g4 {[%clk 0:00:59]}  Rae8 {[%clk 0:00:59]} 27. Rd7 {[%clk 0:00:45]}  Re1+ {[%clk 0:00:52]} 28. Kh2 {[%clk 0:00:43]}  Nf3+ {[%clk 0:00:36]} 29. gxf3 {[%clk 0:00:41]}  R1e2+ {[%clk 0:00:36]} 30. Qxe2 {[%clk 0:00:41]}  Rxe2+ {[%clk 0:00:37]} 31. Kg3 {[%clk 0:00:41]}  g6 {[%clk 0:00:34]} 32. Bd3 {[%clk 0:00:38]}  Rxb2 {[%clk 0:00:33]} 33. Bc4 {[%clk 0:00:38]}  a4 {[%clk 0:00:31]} 34. Bxf7+ {[%clk 0:00:28]}  Kf8 {[%clk 0:00:30]} 35. Bxg6 {[%clk 0:00:27]}  Rxa2 {[%clk 0:00:29]} 36. Rxb7 {[%clk 0:00:25]}  Rc2 {[%clk 0:00:29]} 37. Ra7 {[%clk 0:00:23]}  Rxc5 {[%clk 0:00:27]} 38. Rxa4 {[%clk 0:00:23]}  Kg7 {[%clk 0:00:27]} 39. Bf5 {[%clk 0:00:24]}  Kf7 {[%clk 0:00:26]} 40. Ra7+ {[%clk 0:00:24]}  Ke8 {[%clk 0:00:26]} 41. Kh4 {[%clk 0:00:22]}  Rc3 {[%clk 0:00:26]} 42. Kh5 {[%clk 0:00:22]}  Rxf3 {[%clk 0:00:25]} 43. Kg6 {[%clk 0:00:22]}  c5 {[%clk 0:00:24]} 44. Kxf6 {[%clk 0:00:22]}  Kd8 {[%clk 0:00:23]} 45. Rd7+ {[%clk 0:00:21]}  Ke8 {[%clk 0:00:22]} 46. Rc7 {[%clk 0:00:21]} 1-0


[Site "https://www.chess.com"]

[Event "Titled Tuesday Blitz March 28 Early 2023"]
[White "Mika, Tomasz"]
[Black "Bethke, Richard"]
[WhiteFideId "1132970"]
[BlackFideId "12959243"]
[WhiteElo "2179"]
[BlackElo "2369"]
[Result "0-1"]
[Round "04"]
[TimeControl "180+2"]
[Date "2023.03.28"]
[WhiteClock "0:00:23"]
[BlackClock "0:01:07"]

1. Nf3 {[%clk 0:02:52]}  d5 {[%clk 0:02:59]} 2. c4 {[%clk 0:02:52]}  dxc4 {[%clk 0:02:59]} 3. Na3 {[%clk 0:02:52]}  Qd5 {[%clk 0:02:57]} 4. Qa4+ {[%clk 0:02:47]}  Nc6 {[%clk 0:02:57]} 5. Qxc4 {[%clk 0:02:42]}  Be6 {[%clk 0:02:51]} 6. Qxd5 {[%clk 0:02:21]}  Bxd5 {[%clk 0:02:52]} 7. e3 {[%clk 0:02:21]}  O-O-O {[%clk 0:02:47]} 8. Be2 {[%clk 0:02:18]}  e5 {[%clk 0:02:34]} 9. d3 {[%clk 0:01:55]}  f6 {[%clk 0:02:21]} 10. O-O {[%clk 0:01:46]}  Bxa3 {[%clk 0:02:19]} 11. bxa3 {[%clk 0:01:45]}  Nge7 {[%clk 0:02:20]} 12. Bb2 {[%clk 0:01:41]}  Bxf3 {[%clk 0:02:18]} 13. gxf3 {[%clk 0:01:39]}  Nd5 {[%clk 0:02:16]} 14. Rfc1 {[%clk 0:01:35]}  Rd6 {[%clk 0:02:10]} 15. Kf1 {[%clk 0:01:34]}  Rhd8 {[%clk 0:02:09]} 16. Ke1 {[%clk 0:01:33]}  f5 {[%clk 0:02:05]} 17. Kd2 {[%clk 0:01:29]}  e4 {[%clk 0:02:04]} 18. fxe4 {[%clk 0:01:24]}  fxe4 {[%clk 0:02:03]} 19. d4 {[%clk 0:01:21]}  Rf6 {[%clk 0:02:01]} 20. Rf1 {[%clk 0:01:18]}  Rdf8 {[%clk 0:01:57]} 21. Ke1 {[%clk 0:01:16]}  Rh6 {[%clk 0:01:54]} 22. h3 {[%clk 0:01:10]}  Kd8 {[%clk 0:01:50]} 23. Rh1 {[%clk 0:01:04]}  Nce7 {[%clk 0:01:44]} 24. Rc1 {[%clk 0:00:57]}  Rb6 {[%clk 0:01:36]} 25. Rc2 {[%clk 0:00:54]}  Nf5 {[%clk 0:01:35]} 26. Rg1 {[%clk 0:00:50]}  g6 {[%clk 0:01:21]} 27. Bc4 {[%clk 0:00:34]}  Ndxe3 {[%clk 0:01:12]} 28. fxe3 {[%clk 0:00:33]}  Nxe3 {[%clk 0:01:12]} 29. Rc3 {[%clk 0:00:23]}  Rxb2 {[%clk 0:01:07]} 0-1


[Site "https://www.chess.com"]

[Event "Titled Tuesday Blitz March 28 Early 2023"]
[White "Estremera Panos, Sergio"]
[Black "Grunberg, Mihai-Lucian"]
[WhiteFideId "2200864"]
[BlackFideId "1204149"]
[WhiteElo "2253"]
[BlackElo "2363"]
[Result "1-0"]
[Round "04"]
[TimeControl "180+2"]
[Date "2023.03.28"]
[WhiteClock "0:00:17"]
[BlackClock "0:00:20"]

1. d4 {[%clk 0:03:00]}  Nf6 {[%clk 0:02:55]} 2. c4 {[%clk 0:03:01]}  g6 {[%clk 0:02:55]} 3. Nc3 {[%clk 0:03:02]}  d5 {[%clk 0:02:55]} 4. cxd5 {[%clk 0:03:02]}  Nxd5 {[%clk 0:02:55]} 5. e4 {[%clk 0:03:02]}  Nxc3 {[%clk 0:02:55]} 6. bxc3 {[%clk 0:03:03]}  Bg7 {[%clk 0:02:56]} 7. Nf3 {[%clk 0:03:02]}  c5 {[%clk 0:02:57]} 8. Bb5+ {[%clk 0:03:02]}  Bd7 {[%clk 0:02:50]} 9. Bxd7+ {[%clk 0:03:01]}  Qxd7 {[%clk 0:02:50]} 10. O-O {[%clk 0:03:01]}  Nc6 {[%clk 0:02:44]} 11. Be3 {[%clk 0:03:01]}  O-O {[%clk 0:02:39]} 12. d5 {[%clk 0:03:00]}  Na5 {[%clk 0:02:38]} 13. Bxc5 {[%clk 0:02:58]}  Bxc3 {[%clk 0:02:38]} 14. Rc1 {[%clk 0:02:53]}  Bg7 {[%clk 0:02:37]} 15. Bd4 {[%clk 0:02:52]}  Rfc8 {[%clk 0:02:31]} 16. Bxg7 {[%clk 0:02:49]}  Kxg7 {[%clk 0:02:30]} 17. Qd4+ {[%clk 0:02:49]}  f6 {[%clk 0:02:29]} 18. e5 {[%clk 0:02:49]}  b6 {[%clk 0:02:20]} 19. d6 {[%clk 0:02:47]}  Nc6 {[%clk 0:02:12]} 20. Qd5 {[%clk 0:02:26]}  exd6 {[%clk 0:02:09]} 21. exf6+ {[%clk 0:02:15]}  Kxf6 {[%clk 0:02:08]} 22. Rfe1 {[%clk 0:02:00]}  Kg7 {[%clk 0:01:50]} 23. Ng5 {[%clk 0:01:38]}  Ne5 {[%clk 0:01:44]} 24. f4 {[%clk 0:01:20]}  Nf7 {[%clk 0:01:17]} 25. Qd4+ {[%clk 0:00:57]}  Kg8 {[%clk 0:01:14]} 26. Ne4 {[%clk 0:00:49]}  Kf8 {[%clk 0:01:07]} 27. Nf6 {[%clk 0:00:43]}  Qf5 {[%clk 0:01:05]} 28. Nxh7+ {[%clk 0:00:33]}  Kg8 {[%clk 0:01:05]} 29. Nf6+ {[%clk 0:00:34]}  Kf8 {[%clk 0:01:05]} 30. g4 {[%clk 0:00:20]}  Rxc1 {[%clk 0:00:56]} 31. gxf5 {[%clk 0:00:20]}  Rxe1+ {[%clk 0:00:56]} 32. Kf2 {[%clk 0:00:21]}  Re7 {[%clk 0:00:36]} 33. fxg6 {[%clk 0:00:21]}  Nh6 {[%clk 0:00:32]} 34. Qxd6 {[%clk 0:00:19]}  Rc8 {[%clk 0:00:20]} 35. Nd5 {[%clk 0:00:18]}  Nf5 {[%clk 0:00:20]} 36. Qf6+ {[%clk 0:00:18]}  Ke8 {[%clk 0:00:20]} 37. Nxe7 {[%clk 0:00:16]}  Nxe7 {[%clk 0:00:20]} 38. g7 {[%clk 0:00:17]} 1-0


[Site "https://www.chess.com"]

[Event "Titled Tuesday Blitz March 28 Early 2023"]
[White "Nguyen Hong Nhung"]
[Black "Schut, Han"]
[WhiteFideId "12412201"]
[BlackFideId "1005561"]
[WhiteElo "1904"]
[BlackElo "2024"]
[Result "1-0"]
[Round "04"]
[TimeControl "180+2"]
[Date "2023.03.28"]
[WhiteClock "0:00:02"]
[BlackClock "0:00:01"]

1. e4 {[%clk 0:03:00]}  c5 {[%clk 0:02:58]} 2. Nc3 {[%clk 0:03:00]}  Nc6 {[%clk 0:02:57]} 3. f4 {[%clk 0:02:59]}  g6 {[%clk 0:02:58]} 4. Nf3 {[%clk 0:03:00]}  Bg7 {[%clk 0:02:58]} 5. Bc4 {[%clk 0:03:00]}  e6 {[%clk 0:02:58]} 6. O-O {[%clk 0:03:01]}  Nge7 {[%clk 0:02:59]} 7. d3 {[%clk 0:03:01]}  d5 {[%clk 0:02:58]} 8. Bb3 {[%clk 0:03:01]}  c4 {[%clk 0:02:57]} 9. dxc4 {[%clk 0:03:00]}  dxe4 {[%clk 0:02:57]} 10. Nxe4 {[%clk 0:02:57]}  O-O {[%clk 0:02:52]} 11. c3 {[%clk 0:02:52]}  b6 {[%clk 0:02:49]} 12. Nd6 {[%clk 0:02:44]}  Ba6 {[%clk 0:02:40]} 13. Be3 {[%clk 0:02:37]}  Na5 {[%clk 0:02:30]} 14. Nb5 {[%clk 0:02:22]}  Nf5 {[%clk 0:02:16]} 15. Bf2 {[%clk 0:02:20]}  Qc8 {[%clk 0:02:02]} 16. Qe2 {[%clk 0:02:16]}  Rd8 {[%clk 0:01:51]} 17. Rfd1 {[%clk 0:02:14]}  Qc6 {[%clk 0:01:29]} 18. Ne5 {[%clk 0:01:13]}  Qb7 {[%clk 0:01:14]} 19. Bc2 {[%clk 0:01:05]}  Rxd1+ {[%clk 0:01:00]} 20. Rxd1 {[%clk 0:00:59]}  Qc8 {[%clk 0:00:59]} 21. Be4 {[%clk 0:00:38]}  Nxc4 {[%clk 0:00:53]} 22. Bxa8 {[%clk 0:00:18]}  Bxb5 {[%clk 0:00:54]} 23. Qf3 {[%clk 0:00:09]}  Nxb2 {[%clk 0:00:49]} 24. Rb1 {[%clk 0:00:08]}  Na4 {[%clk 0:00:34]} 25. Rxb5 {[%clk 0:00:08]}  Nxc3 {[%clk 0:00:35]} 26. Rb3 {[%clk 0:00:07]}  Bxe5 {[%clk 0:00:27]} 27. fxe5 {[%clk 0:00:07]}  Na4 {[%clk 0:00:22]} 28. g3 {[%clk 0:00:07]}  Nc5 {[%clk 0:00:20]} 29. Bxc5 {[%clk 0:00:07]}  Qxc5+ {[%clk 0:00:20]} 30. Qf2 {[%clk 0:00:05]}  Qxe5 {[%clk 0:00:18]} 31. Bf3 {[%clk 0:00:05]}  Nd4 {[%clk 0:00:16]} 32. Re3 {[%clk 0:00:05]}  Qc5 {[%clk 0:00:14]} 33. Kg2 {[%clk 0:00:05]}  f5 {[%clk 0:00:12]} 34. Rd3 {[%clk 0:00:04]}  e5 {[%clk 0:00:11]} 35. Bd1 {[%clk 0:00:02]}  Qc6+ {[%clk 0:00:06]} 36. Kg1 {[%clk 0:00:02]}  Qc5 {[%clk 0:00:03]} 37. Bb3+ {[%clk 0:00:01]}  Nxb3 {[%clk 0:00:01]} 38. Rxb3 {[%clk 0:00:02]} 1-0


[Site "https://www.chess.com"]

[Event "Titled Tuesday Blitz March 28 Early 2023"]
[White "Quirke, Jeffrey"]
[Black "Wahedi, Ahmad Siar"]
[WhiteFideId "2013029"]
[BlackFideId "4651260"]
[WhiteElo "2221"]
[BlackElo "2464"]
[Result "1-0"]
[Round "04"]
[TimeControl "180+2"]
[Date "2023.03.28"]
[WhiteClock "0:00:24"]
[BlackClock "0:01:40"]

1. e4 {[%clk 0:03:00]}  c5 {[%clk 0:02:57]} 2. Nc3 {[%clk 0:02:59]}  d6 {[%clk 0:02:56]} 3. f4 {[%clk 0:02:57]}  g6 {[%clk 0:02:55]} 4. Nf3 {[%clk 0:02:57]}  Bg7 {[%clk 0:02:56]} 5. Bb5+ {[%clk 0:02:54]}  Bd7 {[%clk 0:02:55]} 6. a4 {[%clk 0:02:54]}  a6 {[%clk 0:02:55]} 7. Bxd7+ {[%clk 0:02:50]}  Nxd7 {[%clk 0:02:53]} 8. d3 {[%clk 0:02:41]}  e6 {[%clk 0:02:51]} 9. O-O {[%clk 0:02:41]}  Ne7 {[%clk 0:02:50]} 10. Qe1 {[%clk 0:02:41]}  Nc6 {[%clk 0:02:49]} 11. f5 {[%clk 0:02:36]}  Nd4 {[%clk 0:02:47]} 12. Nxd4 {[%clk 0:02:29]}  cxd4 {[%clk 0:02:47]} 13. Ne2 {[%clk 0:02:29]}  e5 {[%clk 0:02:45]} 14. c3 {[%clk 0:02:21]}  dxc3 {[%clk 0:02:43]} 15. Nxc3 {[%clk 0:02:21]}  a5 {[%clk 0:02:15]} 16. Nd5 {[%clk 0:02:14]}  Nb6 {[%clk 0:02:15]} 17. f6 {[%clk 0:02:13]}  Bf8 {[%clk 0:02:14]} 18. Nc3 {[%clk 0:01:58]}  h5 {[%clk 0:02:11]} 19. Be3 {[%clk 0:01:32]}  Bh6 {[%clk 0:02:10]} 20. Kh1 {[%clk 0:01:28]}  Bxe3 {[%clk 0:02:08]} 21. Qxe3 {[%clk 0:01:28]}  Qc7 {[%clk 0:02:07]} 22. Nb5 {[%clk 0:01:15]}  Qd8 {[%clk 0:01:59]} 23. Rac1 {[%clk 0:01:12]}  Rc8 {[%clk 0:01:59]} 24. Qxb6 {[%clk 0:01:00]}  Qxb6 {[%clk 0:01:53]} 25. Rxc8+ {[%clk 0:00:59]}  Kd7 {[%clk 0:01:54]} 26. Rxh8 {[%clk 0:00:58]}  Qe3 {[%clk 0:01:52]} 27. Rf8 {[%clk 0:00:45]}  Qxd3 {[%clk 0:01:52]} 28. Rxf7+ {[%clk 0:00:44]}  Kc6 {[%clk 0:01:52]} 29. Rc1+ {[%clk 0:00:39]}  Kb6 {[%clk 0:01:52]} 30. Rfc7 {[%clk 0:00:31]}  Qxe4 {[%clk 0:01:45]} 31. f7 {[%clk 0:00:31]}  Qf4 {[%clk 0:01:45]} 32. Nxd6 {[%clk 0:00:26]}  e4 {[%clk 0:01:41]} 33. Rxb7+ {[%clk 0:00:24]}  Ka6 {[%clk 0:01:40]} 34. Rc6# {[%clk 0:00:24]} 1-0


[Site "https://www.chess.com"]